fUST/lending_fUST_20250609
["ID","MTS","AMOUNT","RATE_DAILY","PERIOD"]
[365099079,1749466234271,-806.09,0.00021917,4]
[365099081,1749466234281,-440.0,0.00021917,4]
[365099083,1749466234293,-440.0,0.00021917,4]
[365099084,1749466234304,-598.66,0.00021917,4]
[365099086,1749466234318,-440.0,0.00021917,4]
[365099087,1749466234330,-440.0,0.00021917,4]
[365099088,1749466234340,-657.93,0.00021917,4]
[365099090,1749466234350,-587.98,0.00021917,4]
[365099091,1749466234360,-440.0,0.00021917,4]
[365099093,1749466234376,-1661.58,0.00021917,4]
[365099095,1749466234386,-440.0,0.00021917,4]
[365099096,1749466234396,-440.0,0.00021917,4]
[365099098,1749466234408,-696.9,0.00021917,4]
[365099100,1749466234418,-440.0,0.00021917,4]
[365099101,1749466234428,-440.0,0.00021917,4]
[365099103,1749466234438,-440.0,0.00021917,4]
[365099105,1749466234448,-7821.17,0.00021917,4]
[365099106,1749466234462,-440.0,0.00021917,4]
[365099108,1749466234473,-440.0,0.00021917,4]
[365099109,1749466234484,-440.0,0.00021917,4]
[365099111,1749466234498,-32.73221088,0.00021917,4]
[365099182,1749466238515,-512.92778912,0.00021917,4]
[365099183,1749466238526,-440.0,0.00021917,4]
[365099184,1749466238536,-440.0,0.00021917,4]
[365099185,1749466238550,-834.88,0.00021917,4]
[365099187,1749466238560,-500.0,0.00021917,2]
[365099189,1749466238570,-440.0,0.00021917,4]
[365099192,1749466238582,-440.0,0.00021917,4]
[365099193,1749466238591,-440.0,0.00021917,4]
[365099196,1749466238601,-440.0,0.00021917,4]
[365099198,1749466238610,-440.0,0.00021917,4]
[365099200,1749466238620,-430.0,0.00021917,4]
[365099202,1749466238633,-279.2007,0.00021917,4]
[365099204,1749466238646,-1313.45,0.00021917,4]
[365099208,1749466238660,-440.0,0.00021917,4]
[365099211,1749466238673,-1446.72,0.00021917,4]
[365099215,1749466238686,-430.0,0.00021917,4]
[365099217,1749466238697,-440.0,0.00021917,4]
[365099219,1749466238708,-440.0,0.00021917,4]
[365099221,1749466238719,-440.0,0.00021917,2]
[365099224,1749466238732,-440.0,0.00021917,4]
[365099226,1749466238743,-442.45751134,0.00021917,4]
[365099228,1749466238756,-1679.87,0.00021917,4]
[365099230,1749466238768,-932.6,0.00021917,4]
[365099233,1749466238780,-430.0,0.00021917,4]
[365099235,1749466238792,-500.0,0.00021917,4]
[365099237,1749466238803,-1148.49,0.00021917,4]
[365099239,1749466238815,-430.0,0.00021917,4]
[365099242,1749466238827,-288.72212638,0.00021917,4]
[365099244,1749466238839,-500.22395642,0.00021973,2]
[365099246,1749466238851,-209.46238693,0.00021973,2]
[365099249,1749466238863,-512.79628993,0.00021973,2]
[365099251,1749466238874,-164.0,0.00022,2]
[365099253,1749466238886,-403.88072503,0.00022003,6]
[365099255,1749466238897,-403.88072503,0.00022107,6]
[365099257,1749466238909,-258.47392208,0.00022115,2]
[365099260,1749466238920,-500.0,0.00022115,2]
[365099262,1749466238932,-500.0,0.00022138,2]
[365099264,1749466238945,-500.0,0.0002219,4]
[365099266,1749466238958,-440.0,0.00022191,4]
[365099269,1749466238969,-440.0,0.00022191,4]
[365099271,1749466238981,-440.0,0.00022191,4]
[365099273,1749466238992,-440.0,0.00022191,4]
[365099275,1749466239002,-233.85864678,0.00022191,4]
[365099277,1749466239014,-390.0,0.00022191,4]
[365099279,1749466239025,-482.03109554,0.00022191,4]
[365099282,1749466239036,-420.0,0.00022191,4]
[365099284,1749466239048,-440.0,0.00022191,4]
[365099286,1749466239062,-455.67172874,0.00022191,4]
[365099288,1749466239075,-440.0,0.00022191,4]
[365099291,1749466239088,-410.0,0.00022191,4]
[365099293,1749466239099,-420.0,0.00022191,4]
[365099295,1749466239112,-440.0,0.00022191,2]
[365099297,1749466239124,-440.0,0.00022191,4]
[365099300,1749466239136,-440.0,0.00022191,4]
[365099302,1749466239148,-390.0,0.00022191,4]
[365099304,1749466239160,-181.63,0.00022191,4]
[365099307,1749466239171,-440.0,0.00022191,4]
[365099309,1749466239181,-440.0,0.00022191,4]
[365099311,1749466239190,-440.0,0.00022191,4]
[365099313,1749466239200,-430.0,0.00022191,4]
[365099315,1749466239210,-440.0,0.00022191,4]
[365099317,1749466239221,-440.0,0.00022191,4]
[365099319,1749466239232,-1077.01,0.00022191,4]
[365099321,1749466239245,-586.58,0.00022191,4]
[365099324,1749466239258,-538.64751346,0.00022191,4]
[365099326,1749466239271,-1345.52,0.00022191,4]
[365099328,1749466239282,-488.19,0.00022191,4]
[365099330,1749466239292,-385.6,0.00022191,4]
[365099333,1749466239303,-440.0,0.00022191,4]
[365099335,1749466239315,-655.84,0.00022191,4]
[365099337,1749466239326,-806.09,0.00022191,4]
[365099340,1749466239339,-276.91297623,0.00022191,4]
[365099342,1749466239351,-226.78806273,0.00022191,4]
[365099344,1749466239362,-598.66,0.00022191,4]
[365099346,1749466239372,-440.0,0.00022191,4]
[365099348,1749466239383,-440.0,0.00022191,4]
[365099350,1749466239394,-657.93,0.00022191,4]
[365099352,1749466239405,-230.0,0.00022191,4]
[365099355,1749466239417,-1661.58,0.00022191,4]
[365099357,1749466239427,-440.0,0.00022191,4]
[365099359,1749466239438,-696.9,0.00022191,4]
[365099361,1749466239450,-430.0,0.00022191,4]
[365099363,1749466239461,-440.0,0.00022191,4]
[365099366,1749466239473,-7821.17,0.00022191,4]
[365099368,1749466239484,-440.0,0.00022191,4]
[365099370,1749466239496,-440.0,0.00022191,4]
[365099372,1749466239507,-440.0,0.00022191,4]
[365099375,1749466239518,-545.66,0.00022191,4]
[365099377,1749466239529,-440.0,0.00022191,4]
[365099379,1749466239539,-834.88,0.00022191,4]
[365099381,1749466239555,-440.0,0.00022191,4]
[365099384,1749466239565,-440.0,0.00022191,4]
[365099386,1749466239577,-440.0,0.00022191,4]
[365099388,1749466239588,-440.0,0.00022191,4]
[365099390,1749466239598,-1313.45,0.00022191,4]
[365099392,1749466239609,-382.67949076,0.00022191,4]
[365099394,1749466239621,-1446.72,0.00022191,4]
[365099396,1749466239632,-440.0,0.00022191,4]
[365099399,1749466239643,-440.0,0.00022191,2]
[365099401,1749466239654,-440.0,0.00022191,4]
[365099403,1749466239665,-1679.87,0.00022191,4]
[365099405,1749466239676,-932.6,0.00022191,4]
[365099407,1749466239687,-1148.49,0.00022191,4]
[365099410,1749466239698,-200.46604529,0.000222,69]
[365099412,1749466239709,-403.88072503,0.0002221,6]
[365099414,1749466239720,-500.0,0.00022221,4]
[365099416,1749466239731,-403.88072503,0.00022314,7]
[365099418,1749466239742,-426.26,0.00022317,2]
[365099420,1749466239752,-990.0,0.00022408,2]
[365099422,1749466239763,-403.88072503,0.00022417,7]
[365099425,1749466239774,-990.0,0.00022424,2]
[365099427,1749466239785,-230.81608883,0.00022461,2]
[365099429,1749466239796,-500.0,0.00022464,4]
[365099431,1749466239807,-500.0,0.00022464,2]
[365099433,1749466239818,-572.84912092,0.00022464,2]
[365099436,1749466239829,-184.32396633,0.00022464,2]
[365099438,1749466239840,-500.0,0.00022464,2]
[365099440,1749466239851,-440.0,0.00022465,4]
[365099442,1749466239862,-426.05329912,0.00022465,4]
[365099444,1749466239874,-440.0,0.00022465,4]
[365099446,1749466239885,-440.0,0.00022465,4]
[365099449,1749466239896,-218.06659502,0.00022465,4]
[365099451,1749466239907,-440.0,0.00022465,4]
[365099453,1749466239919,-1077.01,0.00022465,4]
[365099455,1749466239928,-586.58,0.00022465,4]
[365099457,1749466239938,-400.0,0.00022465,2]
[365099459,1749466239948,-400.0,0.00022465,2]
[365099461,1749466239957,-400.0,0.00022465,2]
[365099463,1749466239966,-1345.52,0.00022465,4]
[365099465,1749466239976,-440.0,0.00022465,4]
[365099467,1749466239985,-655.84,0.00022465,4]
[365099480,1749466240128,-806.09,0.00022465,4]
[365099481,1749466240145,-598.66,0.00022465,4]
[365099482,1749466240155,-440.0,0.00022465,4]
[365099483,1749466240164,-440.0,0.00022465,4]
[365099484,1749466240173,-657.93,0.00022465,4]
[365099485,1749466240182,-1661.58,0.00022465,4]
[365099486,1749466240191,-440.0,0.00022465,4]
[365099487,1749466240200,-696.9,0.00022465,4]
[365099488,1749466240210,-440.0,0.00022465,4]
[365099489,1749466240219,-7821.17,0.00022465,4]
[365099490,1749466240228,-440.0,0.00022465,4]
[365099491,1749466240237,-440.0,0.00022465,4]
[365099492,1749466240246,-440.0,0.00022465,4]
[365099494,1749466240255,-545.66,0.00022465,4]
[365099496,1749466240265,-440.0,0.00022465,4]
[365099498,1749466240275,-834.88,0.00022465,4]
[365099500,1749466240284,-500.0,0.00022465,2]
[365099502,1749466240294,-440.0,0.00022465,4]
[365099504,1749466240304,-440.0,0.00022465,4]
[365099506,1749466240313,-440.0,0.00022465,4]
[365099508,1749466240323,-1313.45,0.00022465,4]
[365099510,1749466240333,-1446.72,0.00022465,4]
[365099512,1749466240343,-440.0,0.00022465,4]
[365099514,1749466240352,-440.0,0.00022465,2]
[365099516,1749466240362,-1679.87,0.00022465,4]
[365099518,1749466240371,-932.6,0.00022465,4]
[365099520,1749466240381,-1148.49,0.00022465,4]
[365099522,1749466240391,-990.0,0.00022492,2]
[365099524,1749466240401,-403.88072503,0.00022521,7]
[365099526,1749466240410,-420.0,0.0002256,2]
[365099528,1749466240419,-160.0,0.00022622,3]
[365099530,1749466240428,-403.88072503,0.00022624,7]
[365099532,1749466240438,-990.0,0.00022662,2]
[365099534,1749466240447,-1000.0,0.00022663,2]
[365099536,1749466240456,-990.0,0.00022667,2]
[365099538,1749466240466,-990.0,0.00022685,2]
[365099540,1749466240476,-1000.0,0.00022686,2]
[365099542,1749466240485,-407.06,0.00022727,4]
[365099544,1749466240494,-403.88072503,0.00022728,7]
[365099546,1749466240504,-440.0,0.00022739,4]
[365099548,1749466240513,-440.0,0.00022739,4]
[365099550,1749466240523,-440.0,0.00022739,4]
[365099552,1749466240532,-1077.01,0.00022739,4]
[365099554,1749466240542,-586.58,0.00022739,4]
[365099556,1749466240556,-400.0,0.00022739,2]
[365099558,1749466240566,-1345.52,0.00022739,4]
[365099560,1749466240575,-440.0,0.00022739,4]
[365099563,1749466240586,-655.84,0.00022739,4]
[365099565,1749466240597,-806.09,0.00022739,4]
[365099566,1749466240606,-598.66,0.00022739,4]
[365099569,1749466240616,-657.93,0.00022739,4]
[365099571,1749466240627,-1661.58,0.00022739,4]
[365099573,1749466240637,-696.9,0.00022739,4]
[365099575,1749466240647,-440.0,0.00022739,4]
[365099577,1749466240656,-956.17582682,0.00022739,4]
[365099579,1749466240670,-3361.851816,0.00022739,4]
[365099581,1749466240681,-3503.14235718,0.00022739,4]
[365099583,1749466240691,-440.0,0.00022739,4]
[365099585,1749466240700,-545.66,0.00022739,4]
[365099587,1749466240710,-440.0,0.00022739,4]
[365099589,1749466240719,-834.88,0.00022739,4]
[365099591,1749466240729,-440.0,0.00022739,4]
[365099593,1749466240739,-440.0,0.00022739,4]
[365099595,1749466240748,-440.0,0.00022739,4]
[365099597,1749466240758,-1313.45,0.00022739,4]
[365099599,1749466240768,-1446.72,0.00022739,4]
[365099601,1749466240777,-66.48524203,0.00022739,4]
[365099604,1749466240789,-373.51475797,0.00022739,4]
[365099606,1749466240799,-332.003201,0.00022739,2]
[365099608,1749466240808,-1679.87,0.00022739,4]
[365099610,1749466240818,-932.6,0.00022739,4]
[365099612,1749466240827,-1148.49,0.00022739,4]
[365099614,1749466240837,-990.0,0.00022747,2]
[365099616,1749466240846,-403.88072503,0.00022831,8]
[365099618,1749466240856,-990.0,0.00022837,2]
[365099620,1749466240865,-963.0,0.0002286,2]
[365099622,1749466240874,-653.0,0.0002286,2]
[365099624,1749466240883,-2160.0,0.0002286,2]
[365099626,1749466240892,-150.379,0.0002286,2]
[365099628,1749466240902,-405.0,0.0002286,2]
[365099630,1749466240913,-990.0,0.00022911,2]
[365099632,1749466240923,-403.88072503,0.00022934,8]
[365099634,1749466240932,-990.0,0.00022978,2]
[365099636,1749466240942,-500.0,0.00023012,2]
[365099638,1749466240951,-440.0,0.00023013,4]
[365099640,1749466240961,-440.0,0.00023013,4]
[365099642,1749466240971,-362.91506601,0.00023013,4]
[365099644,1749466240980,-1077.01,0.00023013,4]
[365099646,1749466240989,-586.58,0.00023013,4]
[365099648,1749466240999,-400.0,0.00023013,2]
[365099650,1749466241009,-1345.52,0.00023013,4]
[365099652,1749466241018,-440.0,0.00023013,4]
[365099654,1749466241028,-655.84,0.00023013,4]
[365099656,1749466241038,-806.09,0.00023013,4]
[365099658,1749466241047,-598.66,0.00023013,4]
[365099660,1749466241056,-657.93,0.00023013,4]
[365099662,1749466241066,-1661.58,0.00023013,4]
[365099664,1749466241076,-696.9,0.00023013,4]
[365099666,1749466241086,-7821.17,0.00023013,4]
[365099668,1749466241096,-545.66,0.00023013,4]
[365099670,1749466241105,-440.0,0.00023013,4]
[365099672,1749466241115,-500.0,0.00023013,2]
[365099674,1749466241125,-834.88,0.00023013,4]
[365099676,1749466241134,-440.0,0.00023013,4]
[365099678,1749466241144,-440.0,0.00023013,4]
[365099680,1749466241153,-440.0,0.00023013,4]
[365099682,1749466241163,-1313.45,0.00023013,4]
[365099684,1749466241173,-1446.72,0.00023013,4]
[365099686,1749466241183,-440.0,0.00023013,4]
[365099687,1749466241192,-1679.87,0.00023013,4]
[365099689,1749466241202,-932.6,0.00023013,4]
[365099692,1749466241212,-1148.49,0.00023013,4]
[365099693,1749466241221,-403.88072503,0.00023038,8]
[365099695,1749466241231,-990.0,0.00023076,2]
[365099698,1749466241242,-990.0,0.00023106,2]
[365099700,1749466241251,-990.0,0.0002313,2]
[365099701,1749466241261,-403.88072503,0.00023141,8]
[365099703,1749466241270,-215.0738,0.00023183,2]
[365099705,1749466241279,-27574.16239706,0.00023187,2]
[365099707,1749466241289,-990.0,0.00023209,2]
[365099709,1749466241298,-1500.0,0.00023211,2]
[365099711,1749466241308,-1500.0,0.00023234,2]
[365099713,1749466241319,-403.88072503,0.00023245,8]
[365099715,1749466241330,-440.0,0.00023287,4]
[365099717,1749466241339,-440.0,0.00023287,4]
[365099719,1749466241348,-1077.01,0.00023287,4]
[365099721,1749466241358,-586.58,0.00023287,4]
[365099723,1749466241368,-400.0,0.00023287,2]
[365099725,1749466241378,-1345.52,0.00023287,4]
[365099727,1749466241388,-440.0,0.00023287,4]
[365099729,1749466241398,-655.84,0.00023287,4]
[365099731,1749466241407,-806.09,0.00023287,4]
[365099733,1749466241417,-598.66,0.00023287,4]
[365099735,1749466241427,-657.93,0.00023287,4]
[365099737,1749466241436,-1661.58,0.00023287,4]
[365099739,1749466241446,-696.9,0.00023287,4]
[365099741,1749466241455,-7821.17,0.00023287,4]
[365099743,1749466241465,-545.66,0.00023287,4]
[365099745,1749466241474,-440.0,0.00023287,4]
[365099747,1749466241484,-834.88,0.00023287,4]
[365099749,1749466241493,-440.0,0.00023287,4]
[365099751,1749466241503,-440.0,0.00023287,4]
[365099753,1749466241512,-440.0,0.00023287,4]
[365099755,1749466241521,-1313.45,0.00023287,4]
[365099757,1749466241531,-1446.72,0.00023287,4]
[365099759,1749466241541,-440.0,0.00023287,4]
[365099761,1749466241555,-1679.87,0.00023287,4]
[365099763,1749466241564,-932.6,0.00023287,4]
[365099765,1749466241575,-1148.49,0.00023287,4]
[365099767,1749466241585,-403.88072503,0.00023348,9]
[365099769,1749466241595,-990.0,0.00023356,2]
[365099771,1749466241605,-1064.666844,0.00023442,3]
[365099773,1749466241614,-403.88072503,0.00023452,9]
[365099775,1749466241624,-160.00079426,0.00023452,2]
[365099777,1749466241634,-396.19836587,0.00023499,4]
[365099779,1749466241643,-423.24721018,0.00023499,4]
[365099781,1749466241653,-426.30165298,0.00023499,4]
[365099783,1749466241663,-768.56,0.00023499,4]
[365099785,1749466241672,-638.0,0.000235,2]
[365099787,1749466241683,-403.88072503,0.00023555,9]
[365099789,1749466241692,-440.0,0.00023561,4]
[365099791,1749466241702,-163.79852654,0.00023561,4]
[365099793,1749466241712,-440.0,0.00023561,4]
[365099795,1749466241721,-1077.01,0.00023561,4]
[365099797,1749466241731,-586.58,0.00023561,4]
[365099799,1749466241743,-400.0,0.00023561,2]
[365099801,1749466241753,-1345.52,0.00023561,4]
[365099804,1749466241765,-440.0,0.00023561,4]
[365099806,1749466241774,-655.84,0.00023561,4]
[365099808,1749466241784,-806.09,0.00023561,4]
[365099810,1749466241794,-598.66,0.00023561,4]
[365099812,1749466241804,-657.93,0.00023561,4]
[365099814,1749466241814,-1661.58,0.00023561,4]
[365099816,1749466241823,-696.9,0.00023561,4]
[365099818,1749466241833,-7821.17,0.00023561,4]
[365099820,1749466241842,-545.66,0.00023561,4]
[365099822,1749466241853,-440.0,0.00023561,4]
[365099824,1749466241862,-834.88,0.00023561,4]
[365099826,1749466241872,-440.0,0.00023561,4]
[365099828,1749466241882,-440.0,0.00023561,4]
[365099830,1749466241891,-275.26,0.00023561,4]
[365099832,1749466241901,-1313.45,0.00023561,4]
[365099834,1749466241910,-1446.72,0.00023561,4]
[365099836,1749466241920,-440.0,0.00023561,4]
[365099838,1749466241929,-1679.87,0.00023561,4]
[365099840,1749466241939,-932.6,0.00023561,4]
[365099842,1749466241949,-1148.49,0.00023561,4]
[365099844,1749466241959,-600.0,0.00023582,2]
[365099846,1749466241969,-160.0,0.00023594,4]
[365099848,1749466241978,-153.0,0.00023644,2]
[365099849,1749466241988,-153.0,0.00023644,2]
[365099851,1749466241998,-500.0,0.0002365,2]
[365099853,1749466242007,-500.0,0.0002365,2]
[365099855,1749466242017,-403.88072503,0.00023659,9]
[365099857,1749466242027,-176.7945793,0.00023671,2]
[365099859,1749466242038,-573.244939,0.00023671,2]
[365099862,1749466242047,-176.7945791,0.00023671,2]
[365099863,1749466242057,-573.244939,0.00023671,2]
[365099865,1749466242067,-158.7201836,0.00023671,2]
[365099867,1749466242076,-153.0,0.00023671,2]
[365099869,1749466242086,-176.7945793,0.00023671,2]
[365099871,1749466242095,-353.5891583,0.00023671,2]
[365099873,1749466242105,-158.7201836,0.00023671,2]
[365099875,1749466242114,-158.7201836,0.00023671,2]
[365099877,1749466242122,-573.244939,0.00023671,2]
[365099879,1749466242132,-158.7201836,0.00023671,2]
[365099881,1749466242141,-158.7201836,0.00023671,2]
[365099883,1749466242150,-459.4591812,0.00023671,2]
[365099885,1749466242159,-573.244939,0.00023699,2]
[365099887,1749466242168,-573.244939,0.00023699,2]
[365099889,1749466242176,-376.1639127,0.00023753,2]
[365099891,1749466242185,-153.0,0.00023753,2]
[365099893,1749466242193,-153.0,0.00023753,2]
[365099896,1749466242202,-153.0,0.00023753,2]
[365099898,1749466242210,-2000.0,0.00023759,2]
[365099899,1749466242217,-403.88072503,0.00023762,9]
[365099900,1749466242224,-768.56,0.00023773,4]
[365099901,1749466242231,-20234.93087238,0.000238,2]
[365099902,1749466242238,-25325.8182724,0.00023828,2]
[365099903,1749466242324,-2248.34412465,0.00023828,2]
[365099904,1749466242332,-600.0,0.00023828,2]
[365099905,1749466242338,-440.0,0.00023835,4]
[365099907,1749466242348,-440.0,0.00023835,4]
[365099909,1749466242358,-1077.01,0.00023835,4]
[365099911,1749466242368,-586.58,0.00023835,4]
[365099913,1749466242377,-400.0,0.00023835,2]
[365099914,1749466242386,-1345.52,0.00023835,4]
[365099916,1749466242396,-440.0,0.00023835,4]
[365099918,1749466242406,-655.84,0.00023835,4]
[365099920,1749466242415,-806.09,0.00023835,4]
[365099923,1749466242425,-598.66,0.00023835,4]
[365099925,1749466242435,-657.93,0.00023835,4]
[365099927,1749466242445,-1661.58,0.00023835,4]
[365099928,1749466242454,-696.9,0.00023835,4]
[365099930,1749466242464,-7821.17,0.00023835,4]
[365099932,1749466242474,-545.66,0.00023835,4]
[365099934,1749466242483,-440.0,0.00023835,4]
[365099936,1749466242493,-834.88,0.00023835,4]
[365099938,1749466242502,-440.0,0.00023835,4]
[365099940,1749466242511,-440.0,0.00023835,4]
[365099943,1749466242521,-1313.45,0.00023835,4]
[365099944,1749466242530,-1446.72,0.00023835,4]
[365099946,1749466242540,-440.0,0.00023835,4]
[365099948,1749466242554,-1679.87,0.00023835,4]
[365099950,1749466242564,-932.6,0.00023835,4]
[365099952,1749466242574,-1148.49,0.00023835,4]
[365099954,1749466242584,-403.88072503,0.00023866,10]
[365099956,1749466242596,-897.1655,0.000239,2]
[365099958,1749466242605,-550.82921692,0.00023921,2]
[365099960,1749466242615,-42622.56062137,0.00023932,15]
[365100065,1749466243595,-300.83,0.00023922,3]
[365100067,1749466243606,-466.22057489,0.00023932,15]
[365100069,1749466243618,-10718.0,0.00023932,15]
[365100076,1749466243650,-11710.78537641,0.00023932,15]
[365100372,1749466246604,-440.0,0.00021917,4]
[365100374,1749466246614,-599.54741913,0.00023187,2]
[365100377,1749466246627,-817.91386791,0.00023187,2]
[365100379,1749466246638,-1417.46128702,0.00023365,2]
[365100381,1749466246650,-1889.94928612,0.00023932,15]
[365104225,1749466287142,2164.6,0.00024569,60]
[365105310,1749466382712,4804.003147,0.0002457,120]
[365105311,1749466431079,150.0,0.0002457,120]
[365105312,1749466471467,200.0,0.00023912,120]
[365105314,1749466574591,10000.0,0.0002465,120]
[365105315,1749466591413,200.0,0.00024537,120]
[365105316,1749466625595,10000.0,0.0002465,120]
[365105317,1749466643172,10000.0,0.0002465,120]
[365105318,1749466651648,200.0,0.00023494,120]
[365105320,1749466677250,10000.0,0.0002465,120]
[365105321,1749466686039,10000.0,0.0002465,120]
[365105322,1749466704954,10000.0,0.0002465,120]
[365105323,1749466711106,200.0,0.00024274,120]
[365105324,1749466722066,10000.0,0.0002465,120]
[365105325,1749466746525,4770.0,0.0002465,120]
[365105327,1749466764898,10000.0,0.0002465,120]
[365105328,1749466771153,200.0,0.00023439,120]
[365105329,1749466812537,1800.0,0.00024658,120]
[365105330,1749466831445,200.0,0.00024417,120]
[365105331,1749466908564,2639.99999999,0.00024658,120]
[365105332,1749466932581,3520.0,0.00024658,120]
[365105333,1749466952448,200.0,0.00024257,120]
[365105334,1749466960422,3046.93779749,0.00024658,120]
[365105336,1749467019072,440.0,0.00024658,120]
[365105338,1749467023514,1320.0,0.00024658,120]
[365105339,1749467089188,500.0,0.00024658,120]
[365105340,1749467100204,500.0,0.00024658,120]
[365105341,1749467117772,500.0,0.00024658,120]
[365105342,1749467140059,471.95698,0.00024658,120]
[365105343,1749467191350,200.0,0.00024478,120]
[365105345,1749467228648,2000.0,0.0002042,120]
[365105346,1749467251977,200.0,0.00023897,120]
[365105348,1749467311899,200.0,0.00024283,120]
[365105350,1749467337651,179.532932,0.00020584,61]
[365105351,1749467337826,179.532932,0.00020584,80]
[365105352,1749467338035,179.532932,0.00020584,100]
[365105353,1749467338248,179.532932,0.00020584,120]
[365105355,1749467360837,163.22503,0.00013699,2]
[365105357,1749467372037,200.0,0.0002388,120]
[365105360,1749467425223,2500.0,0.00024658,120]
[365105532,1749467438565,-610.02460827,0.00019742,2]
[365105544,1749467438672,-4389.97539173,0.00019742,2]
[365105546,1749467438682,-160.0,0.00020141,2]
[365105548,1749467438691,-212.75,0.00020444,2]
[365105550,1749467438701,-720.662912,0.00020537,2]
[365105552,1749467438710,-179.532932,0.00020584,2]
[365105554,1749467438720,-179.532932,0.00020584,21]
[365105557,1749467438729,-179.532932,0.00020584,41]
[365105559,1749467438739,-550.66560419,0.000209,4]
[365105561,1749467438748,-550.66560407,0.00021038,4]
[365105564,1749467438757,-194.0,0.00021071,2]
[365105566,1749467438766,-1200.0,0.00021071,2]
[365105568,1749467438777,-300.0,0.00021072,2]
[365105570,1749467438786,-300.0,0.00021072,2]
[365105572,1749467438796,-11856.04170836,0.00021073,2]
[365105574,1749467438806,-550.66560407,0.00021176,4]
[365105576,1749467438815,-172.125856,0.000212,2]
[365105578,1749467438824,-417.69,0.000213,14]
[365105580,1749467438834,-550.66560407,0.00021314,5]
[365105582,1749467438843,-550.66560407,0.00021452,5]
[365105584,1749467438853,-550.66560407,0.0002159,5]
[365105586,1749467438862,-550.66560407,0.00021728,5]
[365105588,1749467438872,-218.0,0.0002181,7]
[365105590,1749467438881,-550.66560407,0.00021866,6]
[365105592,1749467438891,-440.0,0.00021917,4]
[365105594,1749467438901,-440.0,0.00021917,4]
[365105596,1749467438910,-440.0,0.00021917,4]
[365105598,1749467438919,-440.0,0.00021917,4]
[365105600,1749467438929,-430.0,0.00021917,4]
[365105602,1749467438938,-440.0,0.00021917,4]
[365105605,1749467438948,-440.0,0.00021917,4]
[365105607,1749467438958,-5254.94,0.00021917,4]
[365105609,1749467438967,-440.0,0.00021917,4]
[365105611,1749467438978,-440.0,0.00021917,4]
[365105613,1749467438987,-430.0,0.00021917,4]
[365105615,1749467438997,-440.0,0.00021917,4]
[365105617,1749467439006,-904.46,0.00021917,4]
[365105619,1749467439015,-431.68950031,0.00021917,4]
[365105621,1749467439025,-825.09,0.00021917,4]
[365105623,1749467439035,-420.0,0.00021917,4]
[365105625,1749467439044,-440.0,0.00021917,4]
[365105627,1749467439053,-431.94888769,0.00021917,4]
[365105629,1749467439062,-430.0,0.00021917,4]
[365105631,1749467439071,-430.0,0.00021917,4]
[365105633,1749467439081,-881.86,0.00021917,4]
[365105635,1749467439090,-440.0,0.00021917,4]
[365105637,1749467439099,-440.0,0.00021917,4]
[365105639,1749467439108,-440.0,0.00021917,4]
[365105640,1749467439118,-440.0,0.00021917,4]